Workbook

Sheet Eingabe
E2: Messprozessanalyse Verfahren 3 Anova (Basis Bosch Heft 10)
B3: Messmittel | E3: Teil | I3: Merkmal
B4: Bez.: | E4: Objekt: | I4: Bezeichnung
B5: Nummer: | E5: Nummer: | I5: Merkmal Nr.
B6: Messbereich | E6: Zeichnung: | I6: Nennmaß
B7: Auflösung: | E7: Einheit: | I7: Einheit | L7: mm
I8: OGW | L8: 0.03
B9: Akt. Dat.: | I9: UGW | L9: -0.03
B10: Bearbeiter: | I10: Toleranz: | L10: =L8-L9 -> 0.06
B11: D16 und die blauen Zellen können verändert werden
B13: Ergebnis aus MSA Verfahren 1 | E13: Anzahl der Teile n | H13: =COUNT(C20:C44) -> 25 | I13: Messsystem ist
B14: Protokoll Nr. | E14: Anzahl der Prüfer k | H14: 1 | I14: fähig bis | L14: 0.1
E15: Anz. Prüfungen je Prüfer / Objekt r | H15: =COUNT(C20:H20) -> 2 | I15: akzeptabel bis | L15: 0.3
B16: Das Prüfmittel | D16: ist fähig | I16: nicht akzeptabel ab | L16: =L15 -> 0.3
C18: Prüfer j=1 | D18: Hauser
B19: Teil Nr. | C19: m=1 | D19: m=2 | E19: m=3 | F19: m=4 | G19: m=5 | H19: m=6
B20: i=1 | C20: 6.029 | D20: 6.03
B21: i=2 | C21: 6.019 | D21: 6.02
B22: i=3 | C22: 6.004 | D22: 6.003
B23: i=4 | C23: 5.982 | D23: 5.982
B24: i=5 | C24: 6.009 | D24: 6.009
B25: i=6 | C25: 5.971 | D25: 5.972
B26: i=7 | C26: 5.995 | D26: 5.997
B27: i=8 | C27: 6.014 | D27: 6.018
B28: i=9 | C28: 5.985 | D28: 5.987
B29: i=10 | C29: 6.024 | D29: 6.028
B30: i=11 | C30: 6.033 | D30: 6.032
B31: i=12 | C31: 6.02 | D31: 6.019
B32: i=13 | C32: 6.007 | D32: 6.007
B33: i=14 | C33: 5.985 | D33: 5.986
B34: i=15 | C34: 6.014 | D34: 6.014
B35: i=16 | C35: 5.973 | D35: 5.972
B36: i=17 | C36: 5.997 | D36: 5.996
B37: i=18 | C37: 6.019 | D37: 6.015
B38: i=19 | C38: 5.987 | D38: 5.986
B39: i=20 | C39: 6.029 | D39: 6.025
B40: i=21 | C40: 6.017 | D40: 6.019
B41: i=22 | C41: 6.003 | D41: 6.001
B42: i=23 | C42: 6.009 | D42: 6.012
B43: i=24 | C43: 5.987 | D43: 5.987
B44: i=25 | C44: 6.006 | D44: 6.003
B46: Verfügbare Anzahl Messobjekte | E46: Erforderliche Mindestanzahl Messreihen
B47: =">=25" -> >=25 | E47: 2
B48: ="13 - 24" -> 13 - 24 | E48: 3
B49: ="9 - 12" -> 9 - 12 | E49: 4
B50: ="7 - 8" -> 7 - 8 | E50: 5
B51: ="5 - 6" -> 5 - 6 | E51: 6
E53: Standard- abweichung | F53: Streubreite | H53: Anteil an Gesamt- streubreite | I53: Anteil der Toleranz
B54: Einflussgrößen | E54: SD | F54: SV | H54: %SV | I54: %T
B55: Teile (Part Variation) Teilestreuung | D55: PV | E55: =Berechnung!G50 -> 0.01770080036 | F55: =Berechnung!H50 -> 0.1062048022 | G55: %PV | H55: =Berechnung!J50 -> 0.9965707471 | I55: =Berechnung!K50 -> 1.770080036
B56: Messeinrichtung (Equipment Variation) Wiederholpräzision | D56: EV | E56: =Berechnung!G53 -> 0.001469693846 | F56: =Berechnung!H53 -> 0.008818163074 | G56: %EV | H56: =Berechnung!J53 -> 0.082745066 | I56: =Berechnung!K53 -> 0.1469693846
B57: Prüfsystemstreuung | D57: GRR | E57: =Berechnung!G54 -> 0.001469693846 | F57: =Berechnung!H54 -> 0.008818163074 | G57: %GRR | H57: =Berechnung!J54 -> 0.082745066 | I57: =Berechnung!K54 -> 0.1469693846
B58: Gesamtstreuung (Total Variation) | D58: TV | E58: =Berechnung!G55 -> 0.01776170975 | F58: =Berechnung!H55 -> 0.1065702585 | G58: %TV | H58: =Berechnung!J55 -> 1 | I58: =Berechnung!K55 -> 1.776170975
B60: Anzahl unterscheidbarer Klassen (min 5) | F60: ndc | G60: =Berechnung!G56 -> 17
B62: =IF(I57<L14,"Das Messsystem ist fähig",IF(I57>L15,"Das Messsystem ist nicht fähig","Das Messsystem ist bedingt fähig")) -> Das Messsystem ist bedingt fähig
B63: =IF(G60<5,"(ndc) Der Messprozess ist nicht in der Lage genügend viele Teile unterscheidbar zu messen","(ndc) Der Messprozess ist in der Lage genügend viele Teile unterscheidbar zu messen") -> (ndc) Der Messprozess ist in der Lage genügend viele Teile unterscheidbar zu messen
K65: =0 -> 0
K66: =K65+L14 -> 0.1
K67: =L15-L14 -> 0.2
K68: =1-L15 -> 0.7

Sheet Berechnung (hidden)
A1: Erwin Büchele GmbH & Co. KG
B2: www.sixsigmablackbelt.de | E2: Messprozessanaylse Verfahren 3 Anova (Basis Bosch Heft 10)
B3: Messmittel | E3: Merkmal | I3: Normal
B4: Bez.: | E4: Objekt: | I4: Be.:
B5: Nummer: | E5: Nummer: | I5: Nummer
B6: Auflösung: | E6: Zeichnungsnr. | I6: Nennmaß:
B7: Auflösung: | E7: Einheit: | I7: Einheit:
B8: Akt. Dat.: | C8: 2015-01-04 | E8: OGW | F8: =Eingabe!L8 -> 0.03
B9: Bearbeiter: | E9: UGW | F9: =Eingabe!L9 -> -0.03 | G9: Toleranz: | H9: =Eingabe!L10 -> 0.06
B10: Prüferverfahren Beschreibung:
B12: Ergebnis aus MSA Verfahren 1 | E12: Anzahl der Teile n | H12: =COUNT(C19:C43) -> 25 | I12: Messsystem ist
E13: Anzahl der Prüfer k | H13: 1 | I13: fähig bis | K13: =Eingabe!L14 -> 0.1
B14: Protokoll Nr. | E14: Anz. Prüfungen je Prüfer / Objekt r | H14: =COUNT(C19:H19) -> 2 | I14: akzeptabel bis | K14: =Eingabe!L15 -> 0.3
B15: Das Prüfmittel | D15: =Eingabe!D16 -> ist fähig | E15: Bedingung k*n*r > 30 | H15: =IF((AnzahlTeile*AnzahlPruefer*AnzahlMessungen)>=30,"erfüllt","nicht erfüllt") -> erfüllt | I15: nicht akzeptabel ab | K15: =Eingabe!L16 -> 0.3
C17: Prüfer j=1 | D17: =Eingabe!D18 -> Hauser | J17: Spannweite
B18: Teil Nr. | C18: m=1 | D18: m=2 | E18: m=3 | F18: m=4 | G18: m=5 | H18: m=6
B19: i=1 | C19: =IF(Eingabe!C20="","",Eingabe!C20) -> 6.029 | D19: =IF(Eingabe!D20="","",Eingabe!D20) -> 6.03 | E19: =IF(Eingabe!E20="","",Eingabe!E20) ->  | F19: =IF(Eingabe!F20="","",Eingabe!F20) ->  | G19: =IF(Eingabe!G20="","",Eingabe!G20) ->  | H19: =IF(Eingabe!H20="","",Eingabe!H20) ->  | J19: =IF(C19<>"",MAX(C19:H19)-MIN(C19:H19),#N/A) -> 0.001 | O19: =IF(C19<>"",AVERAGE(C19:H19),"") -> 6.0295 | P19: =IF(C19<>"",AVERAGE(C19:H19),"") -> 6.0295 | S19: =(O19-$P$52)^2 -> 0.0006120676 | T19: =(P19-$P$49-O19+$P$52)^2 -> 0 | W19: =(C19-P19)^2 -> 2.5e-07 | X19: =(D19-P19)^2 -> 2.5e-07 | Y19: =IF(E19="","",(E19-P19)^2) ->  | Z19: =IF(F19="","",(F19-P19)^2) ->  | AA19: =IF(G19="","",(G19-P19)^2) ->  | AB19: =IF(H19="","",(H19-P19)^2) -> 
B20: i=2 | C20: =IF(Eingabe!C21="","",Eingabe!C21) -> 6.019 | D20: =IF(Eingabe!D21="","",Eingabe!D21) -> 6.02 | E20: =IF(Eingabe!E21="","",Eingabe!E21) ->  | F20: =IF(Eingabe!F21="","",Eingabe!F21) ->  | G20: =IF(Eingabe!G21="","",Eingabe!G21) ->  | H20: =IF(Eingabe!H21="","",Eingabe!H21) ->  | J20: =IF(C20<>"",MAX(C20:H20)-MIN(C20:H20),#N/A) -> 0.001 | O20: =IF(C20<>"",AVERAGE(C20:H20),"") -> 6.0195 | P20: =IF(C20<>"",AVERAGE(C20:H20),"") -> 6.0195 | S20: =(O20-$P$52)^2 -> 0.0002172676 | T20: =(P20-$P$49-O20+$P$52)^2 -> 0 | W20: =(C20-P20)^2 -> 2.5e-07 | X20: =(D20-P20)^2 -> 2.5e-07 | Y20: =IF(E20="","",(E20-P20)^2) ->  | Z20: =IF(F20="","",(F20-P20)^2) ->  | AA20: =IF(G20="","",(G20-P20)^2) ->  | AB20: =IF(H20="","",(H20-P20)^2) -> 
B21: i=3 | C21: =IF(Eingabe!C22="","",Eingabe!C22) -> 6.004 | D21: =IF(Eingabe!D22="","",Eingabe!D22) -> 6.003 | E21: =IF(Eingabe!E22="","",Eingabe!E22) ->  | F21: =IF(Eingabe!F22="","",Eingabe!F22) ->  | G21: =IF(Eingabe!G22="","",Eingabe!G22) ->  | H21: =IF(Eingabe!H22="","",Eingabe!H22) ->  | J21: 0.001 | O21: 6.0035 | P21: 6.0035 | S21: =(O21-$P$52)^2 -> 1.5876e-06 | T21: =(P21-$P$49-O21+$P$52)^2 -> 0 | W21: =(C21-P21)^2 -> 2.5e-07 | X21: =(D21-P21)^2 -> 2.5e-07
B22: i=4 | C22: =IF(Eingabe!C23="","",Eingabe!C23) -> 5.982 | D22: =IF(Eingabe!D23="","",Eingabe!D23) -> 5.982 | E22: =IF(Eingabe!E23="","",Eingabe!E23) ->  | F22: =IF(Eingabe!F23="","",Eingabe!F23) ->  | G22: =IF(Eingabe!G23="","",Eingabe!G23) ->  | H22: =IF(Eingabe!H23="","",Eingabe!H23) ->  | J22: 0 | O22: 5.982 | P22: 5.982 | S22: =IF(O22="","",(O22-$P$52)^2) -> 0.0005180176 | T22: =(P22-$P$49-O22+$P$52)^2 -> 0 | W22: =(C22-P22)^2 -> 0 | X22: =(D22-P22)^2 -> 0
B23: i=5 | C23: =IF(Eingabe!C24="","",Eingabe!C24) -> 6.009 | D23: =IF(Eingabe!D24="","",Eingabe!D24) -> 6.009 | E23: =IF(Eingabe!E24="","",Eingabe!E24) ->  | F23: =IF(Eingabe!F24="","",Eingabe!F24) ->  | G23: =IF(Eingabe!G24="","",Eingabe!G24) ->  | H23: =IF(Eingabe!H24="","",Eingabe!H24) ->  | J23: 0 | O23: 6.009 | P23: 6.009 | S23: 1.79776e-05 | T23: =IF(P23="","",(P23-$P$49-O23+$P$52)^2) -> 0 | W23: =IF(P23="","",(C23-P23)^2) -> 0 | X23: =IF(P23="","",(D23-P23)^2) -> 0
B24: i=6 | C24: =IF(Eingabe!C25="","",Eingabe!C25) -> 5.971 | D24: =IF(Eingabe!D25="","",Eingabe!D25) -> 5.972 | E24: =IF(Eingabe!E25="","",Eingabe!E25) ->  | F24: =IF(Eingabe!F25="","",Eingabe!F25) ->  | G24: =IF(Eingabe!G25="","",Eingabe!G25) ->  | H24: =IF(Eingabe!H25="","",Eingabe!H25) ->  | J24: 0.001 | O24: 5.9715 | P24: 5.9715 | S24: 0.0011062276 | T24: 0 | W24: 2.5e-07 | X24: 2.5e-07
B25: i=7 | C25: =IF(Eingabe!C26="","",Eingabe!C26) -> 5.995 | D25: =IF(Eingabe!D26="","",Eingabe!D26) -> 5.997 | E25: =IF(Eingabe!E26="","",Eingabe!E26) ->  | F25: =IF(Eingabe!F26="","",Eingabe!F26) ->  | G25: =IF(Eingabe!G26="","",Eingabe!G26) ->  | H25: =IF(Eingabe!H26="","",Eingabe!H26) ->  | J25: 0.002 | O25: 5.996 | P25: 5.996 | S25: 7.67376e-05 | T25: 0 | W25: 1e-06 | X25: 1e-06
B26: i=8 | C26: =IF(Eingabe!C27="","",Eingabe!C27) -> 6.014 | D26: =IF(Eingabe!D27="","",Eingabe!D27) -> 6.018 | E26: =IF(Eingabe!E27="","",Eingabe!E27) ->  | F26: =IF(Eingabe!F27="","",Eingabe!F27) ->  | G26: =IF(Eingabe!G27="","",Eingabe!G27) ->  | H26: =IF(Eingabe!H27="","",Eingabe!H27) ->  | J26: 0.004 | O26: 6.016 | P26: 6.016 | S26: 0.0001263376 | T26: 0 | W26: 4e-06 | X26: 4e-06
B27: i=9 | C27: =IF(Eingabe!C28="","",Eingabe!C28) -> 5.985 | D27: =IF(Eingabe!D28="","",Eingabe!D28) -> 5.987 | E27: =IF(Eingabe!E28="","",Eingabe!E28) ->  | F27: =IF(Eingabe!F28="","",Eingabe!F28) ->  | G27: =IF(Eingabe!G28="","",Eingabe!G28) ->  | H27: =IF(Eingabe!H28="","",Eingabe!H28) ->  | J27: 0.002 | O27: 5.986 | P27: 5.986 | S27: 0.0003519376 | T27: 0 | W27: 1e-06 | X27: 1e-06
B28: i=10 | C28: =IF(Eingabe!C29="","",Eingabe!C29) -> 6.024 | D28: =IF(Eingabe!D29="","",Eingabe!D29) -> 6.028 | E28: =IF(Eingabe!E29="","",Eingabe!E29) ->  | F28: =IF(Eingabe!F29="","",Eingabe!F29) ->  | G28: =IF(Eingabe!G29="","",Eingabe!G29) ->  | H28: =IF(Eingabe!H29="","",Eingabe!H29) ->  | J28: 0.004 | O28: 6.026 | P28: 6.026 | S28: 0.0004511376 | T28: 0 | W28: 4e-06 | X28: 4e-06
B29: i=11 | C29: =IF(Eingabe!C30="","",Eingabe!C30) -> 6.033 | D29: =IF(Eingabe!D30="","",Eingabe!D30) -> 6.032 | E29: =IF(Eingabe!E30="","",Eingabe!E30) ->  | F29: =IF(Eingabe!F30="","",Eingabe!F30) ->  | G29: =IF(Eingabe!G30="","",Eingabe!G30) ->  | H29: =IF(Eingabe!H30="","",Eingabe!H30) ->  | J29: 0.001 | O29: 6.0325 | P29: 6.0325 | S29: =IF(O29="","",(O29-$P$52)^2) -> 0.0007695076 | T29: =IF(P29="","",(P29-$P$49-O29+$P$52)^2) -> 0 | W29: =IF(P29="","",(C29-P29)^2) -> 2.5e-07 | X29: =IF(P29="","",(D29-P29)^2) -> 2.5e-07
B30: i=12 | C30: =IF(Eingabe!C31="","",Eingabe!C31) -> 6.02 | D30: =IF(Eingabe!D31="","",Eingabe!D31) -> 6.019 | E30: =IF(Eingabe!E31="","",Eingabe!E31) ->  | F30: =IF(Eingabe!F31="","",Eingabe!F31) ->  | G30: =IF(Eingabe!G31="","",Eingabe!G31) ->  | H30: =IF(Eingabe!H31="","",Eingabe!H31) ->  | J30: 0.001 | O30: 6.0195 | P30: 6.0195 | S30: 0.0002172676 | T30: 0 | W30: 2.5e-07 | X30: 2.5e-07
B31: i=13 | C31: =IF(Eingabe!C32="","",Eingabe!C32) -> 6.007 | D31: =IF(Eingabe!D32="","",Eingabe!D32) -> 6.007 | E31: =IF(Eingabe!E32="","",Eingabe!E32) ->  | F31: =IF(Eingabe!F32="","",Eingabe!F32) ->  | G31: =IF(Eingabe!G32="","",Eingabe!G32) ->  | H31: =IF(Eingabe!H32="","",Eingabe!H32) ->  | J31: 0 | O31: 6.007 | P31: 6.007 | S31: 5.0176e-06 | T31: 0 | W31: 0 | X31: 0
B32: i=14 | C32: =IF(Eingabe!C33="","",Eingabe!C33) -> 5.985 | D32: =IF(Eingabe!D33="","",Eingabe!D33) -> 5.986 | E32: =IF(Eingabe!E33="","",Eingabe!E33) ->  | F32: =IF(Eingabe!F33="","",Eingabe!F33) ->  | G32: =IF(Eingabe!G33="","",Eingabe!G33) ->  | H32: =IF(Eingabe!H33="","",Eingabe!H33) ->  | J32: 0.001 | O32: 5.9855 | P32: 5.9855 | S32: 0.0003709476 | T32: 0 | W32: 2.5e-07 | X32: 2.5e-07
B33: i=15 | C33: =IF(Eingabe!C34="","",Eingabe!C34) -> 6.014 | D33: =IF(Eingabe!D34="","",Eingabe!D34) -> 6.014 | E33: =IF(Eingabe!E34="","",Eingabe!E34) ->  | F33: =IF(Eingabe!F34="","",Eingabe!F34) ->  | G33: =IF(Eingabe!G34="","",Eingabe!G34) ->  | H33: =IF(Eingabe!H34="","",Eingabe!H34) ->  | J33: 0 | O33: 6.014 | P33: 6.014 | S33: 8.53776e-05 | T33: 0 | W33: 0 | X33: 0
B34: i=16 | C34: =IF(Eingabe!C35="","",Eingabe!C35) -> 5.973 | D34: =IF(Eingabe!D35="","",Eingabe!D35) -> 5.972 | E34: =IF(Eingabe!E35="","",Eingabe!E35) ->  | F34: =IF(Eingabe!F35="","",Eingabe!F35) ->  | G34: =IF(Eingabe!G35="","",Eingabe!G35) ->  | H34: =IF(Eingabe!H35="","",Eingabe!H35) ->  | J34: 0.001 | O34: 5.9725 | P34: 5.9725 | S34: 0.0010407076 | T34: 0 | W34: 2.5e-07 | X34: 2.5e-07
B35: i=17 | C35: =IF(Eingabe!C36="","",Eingabe!C36) -> 5.997 | D35: =IF(Eingabe!D36="","",Eingabe!D36) -> 5.996 | E35: =IF(Eingabe!E36="","",Eingabe!E36) ->  | F35: =IF(Eingabe!F36="","",Eingabe!F36) ->  | G35: =IF(Eingabe!G36="","",Eingabe!G36) ->  | H35: =IF(Eingabe!H36="","",Eingabe!H36) ->  | J35: 0.001 | O35: 5.9965 | P35: 5.9965 | S35: 6.82276e-05 | T35: 0 | W35: 2.5e-07 | X35: 2.5e-07
B36: i=18 | C36: =IF(Eingabe!C37="","",Eingabe!C37) -> 6.019 | D36: =IF(Eingabe!D37="","",Eingabe!D37) -> 6.015 | E36: =IF(Eingabe!E37="","",Eingabe!E37) ->  | F36: =IF(Eingabe!F37="","",Eingabe!F37) ->  | G36: =IF(Eingabe!G37="","",Eingabe!G37) ->  | H36: =IF(Eingabe!H37="","",Eingabe!H37) ->  | J36: 0.004 | O36: 6.017 | P36: 6.017 | S36: 0.0001498176 | T36: 0 | W36: 4e-06 | X36: 4e-06
B37: i=19 | C37: =IF(Eingabe!C38="","",Eingabe!C38) -> 5.987 | D37: =IF(Eingabe!D38="","",Eingabe!D38) -> 5.986 | E37: =IF(Eingabe!E38="","",Eingabe!E38) ->  | F37: =IF(Eingabe!F38="","",Eingabe!F38) ->  | G37: =IF(Eingabe!G38="","",Eingabe!G38) ->  | H37: =IF(Eingabe!H38="","",Eingabe!H38) ->  | J37: 0.001 | O37: 5.9865 | P37: 5.9865 | S37: 0.0003334276 | T37: 0 | W37: 2.5e-07 | X37: 2.5e-07
B38: i=20 | C38: =IF(Eingabe!C39="","",Eingabe!C39) -> 6.029 | D38: =IF(Eingabe!D39="","",Eingabe!D39) -> 6.025 | E38: =IF(Eingabe!E39="","",Eingabe!E39) ->  | F38: =IF(Eingabe!F39="","",Eingabe!F39) ->  | G38: =IF(Eingabe!G39="","",Eingabe!G39) ->  | H38: =IF(Eingabe!H39="","",Eingabe!H39) ->  | J38: 0.004 | O38: 6.027 | P38: 6.027 | S38: 0.0004946176 | T38: 0 | W38: 4e-06 | X38: 4e-06
B39: i=21 | C39: =IF(Eingabe!C40="","",Eingabe!C40) -> 6.017 | D39: =IF(Eingabe!D40="","",Eingabe!D40) -> 6.019 | E39: =IF(Eingabe!E40="","",Eingabe!E40) ->  | F39: =IF(Eingabe!F40="","",Eingabe!F40) ->  | G39: =IF(Eingabe!G40="","",Eingabe!G40) ->  | H39: =IF(Eingabe!H40="","",Eingabe!H40) ->  | J39: 0.002 | O39: 6.018 | P39: 6.018 | S39: 0.0001752976 | T39: 0 | W39: 1e-06 | X39: 1e-06
B40: i=22 | C40: =IF(Eingabe!C41="","",Eingabe!C41) -> 6.003 | D40: =IF(Eingabe!D41="","",Eingabe!D41) -> 6.001 | E40: =IF(Eingabe!E41="","",Eingabe!E41) ->  | F40: =IF(Eingabe!F41="","",Eingabe!F41) ->  | G40: =IF(Eingabe!G41="","",Eingabe!G41) ->  | H40: =IF(Eingabe!H41="","",Eingabe!H41) ->  | J40: 0.002 | O40: 6.002 | P40: 6.002 | S40: 7.6176e-06 | T40: 0 | W40: 1e-06 | X40: 1e-06
B41: i=23 | C41: =IF(Eingabe!C42="","",Eingabe!C42) -> 6.009 | D41: =IF(Eingabe!D42="","",Eingabe!D42) -> 6.012 | E41: =IF(Eingabe!E42="","",Eingabe!E42) ->  | F41: =IF(Eingabe!F42="","",Eingabe!F42) ->  | G41: =IF(Eingabe!G42="","",Eingabe!G42) ->  | H41: =IF(Eingabe!H42="","",Eingabe!H42) ->  | J41: 0.003 | O41: 6.0105 | P41: 6.0105 | S41: 3.29476e-05 | T41: 0 | W41: 2.25e-06 | X41: 2.25e-06
B42: i=24 | C42: =IF(Eingabe!C43="","",Eingabe!C43) -> 5.987 | D42: =IF(Eingabe!D43="","",Eingabe!D43) -> 5.987 | E42: =IF(Eingabe!E43="","",Eingabe!E43) ->  | F42: =IF(Eingabe!F43="","",Eingabe!F43) ->  | G42: =IF(Eingabe!G43="","",Eingabe!G43) ->  | H42: =IF(Eingabe!H43="","",Eingabe!H43) ->  | J42: 0 | O42: 5.987 | P42: 5.987 | S42: 0.0003154176 | T42: 0 | W42: 0 | X42: 0
B43: i=25 | C43: =IF(Eingabe!C44="","",Eingabe!C44) -> 6.006 | D43: =IF(Eingabe!D44="","",Eingabe!D44) -> 6.003 | E43: =IF(Eingabe!E44="","",Eingabe!E44) ->  | F43: =IF(Eingabe!F44="","",Eingabe!F44) ->  | G43: =IF(Eingabe!G44="","",Eingabe!G44) ->  | H43: =IF(Eingabe!H44="","",Eingabe!H44) ->  | J43: 0.003 | O43: 6.0045 | P43: 6.0045 | S43: 6.76e-08 | T43: 0 | W43: 2.25e-06 | X43: 2.25e-06
G48: Standard- abweichung | H48: Streubreite | J48: Anteil an Gesamt- streubreite | K48: Anteill der Toleranz | P48: Mittelwert der Prüfer | Q48: ="(Mittelwert der Prüfer - Mittelwert alle Teile)^2" -> (Mittelwert der Prüfer - Mittelwert alle Teile)^2
B49: Einflussgrößen | G49: SD | H49: SV | J49: %SV | K49: %T | N49: =TODAY() -> 2020-01-12 | O49: Prüfer 1 | P49: =sixmsa3_P49(C19:H43) -> 6.00476 | Q49: =(P49-$P$52)^2 -> 0 | R49: 2020-01-12 | S49: =IF(R49=N49,1,0) -> 1
B50: Teile (Part Variation) Teilestreuung | F50: PV | G50: =IF($Z$56=0,AD65,AD56) -> 0.01770080036 | H50: =IF(G50="","",6*G50) -> 0.1062048022 | I50: %PV | J50: =IF(H50="","",H50/$H$55) -> 0.9965707471 | K50: =IF(G50="","",6*G50/$H$9) -> 1.770080036
B51: Prüfer (Appraiser Variation) Vergleichspräzision
B52: Wechselwirkung (Interaction) | O52: Mittelwert alle Teile | P52: =P49 -> 6.00476
B53: Messeinrichtung (Equipment Variation) Wiederholpräzision | F53: EV | G53: =IF($Z$58=0,AD68,AD59) -> 0.001469693846 | H53: =6*G53 -> 0.008818163074 | I53: %EV | J53: =H53/$H$55 -> 0.082745066 | K53: =6*G53/$H$9 -> 0.1469693846
B54: Prüfsystemstreuung | F54: GRR | G54: =IF($Z$58=0,AD69,AD60) -> 0.001469693846 | H54: =6*G54 -> 0.008818163074 | I54: %GRR | J54: =H54/$H$55 -> 0.082745066 | K54: =IF((6*G54/$H$9)>1,1,6*G54/$H$9) -> 0.1469693846
B55: Gesamtstreuung (Total Variation) | F55: TV | G55: =IF($Z$58=0,AD70,AD61) -> 0.01776170975 | H55: =6*G55 -> 0.1065702585 | I55: %TV | J55: =H55/$H$55 -> 1 | K55: =6*G55/$H$9 -> 1.776170975
B56: Anzahl unterscheidbarer Klassen (min 5) | F56: ndc | G56: =IF(ROUNDDOWN(SQRT(2)*G50/G54,0)=0,1,ROUNDDOWN((SQRT(2)*(G50/G54)),0)) -> 17 | Q56: =AnzahlPruefer_k*AnzahlMessungen_r*SUM(S19:S43) -> 0.01509112 | S56: =AnzahlTeile_n-1 -> 24 | U56: =Q56/S56 -> 0.0006287966667 | W56: =U56/U59 -> 291.1095679 | Y56: =FINV(0.05,S56,S59) -> 1.964305634 | Z56: =IF(Y56<W56,0,1) -> 0 | AC56: =(U56-U59)/(Berechnung!AnzahlPruefer*Berechnung!AnzahlMessungen_r) -> 0.0003133183333 | AD56: =IF(AC56<0,0,SQRT(AC56)) -> 0.01770080036
B58: Bemerkung
B59: =IF(K54<K13,"Das Messsystem ist fähig",IF(K54>K14,"Das Messsystem ist nicht fähig","Das Messsystem ist bedingt fähig")) -> Das Messsystem ist bedingt fähig | Q59: =SUM(W19:AE43) -> 5.4e-05 | S59: =AnzahlTeile_n*AnzahlPruefer_k*(AnzahlMessungen_r-1) -> 25 | U59: =Q59/S59 -> 2.16e-06 | Z59: 0 | AC59: =U59 -> 2.16e-06 | AD59: =SQRT(AC59) -> 0.001469693846
B60: =IF(G56<5,"(ndc) Der Messprozess ist nicht in der Lage genügend viele Teile unterscheidbar zu messen","(ndc) Der Messprozess ist in der Lage genügend viele Teile unterscheidbar zu messen") -> (ndc) Der Messprozess ist in der Lage genügend viele Teile unterscheidbar zu messen | Q60: =SUM(Q56:Q59) -> 0.01514512 | S60: =AnzahlMessungen*AnzahlPruefer*AnzahlTeile-1 -> 49 | U60: =Q60/S60 -> 0.0003090840816 | Z60: 0 | AC60: =AC59+AC58+AC57 -> 2.16e-06 | AD60: 0.001469693846
AC61: =IF(AC56>0,AC60+AC56,AC60) -> 0.0003154783333 | AD61: 0.01776170975
AC65: =(U66-U69)/(Berechnung!AnzahlPruefer*Berechnung!AnzahlMessungen_r) -> 0.0003133183333 | AD65: =IF(AC65<0,0,SQRT(AC65)) -> 0.01770080036
Q66: =Q56 -> 0.01509112 | S66: =AnzahlTeile_n-1 -> 24 | U66: =U56 -> 0.0006287966667 | W66: =U66/U69 -> 291.1095679 | Y66: =FINV(0.05,S66,S69) -> 1.964305634
K68: =0 -> 0 | AC68: =U69 -> 2.16e-06 | AD68: 0.001469693846
K69: =K68+K13 -> 0.1 | Q69: =Q59+Q58 -> 5.4e-05 | S69: =S58+S59 -> 25 | U69: =Q69/S69 -> 2.16e-06 | AC69: =AC68+AC66 -> 2.16e-06 | AD69: 0.001469693846
K70: =K14-K13 -> 0.2 | Q70: =SUM(Q66:Q69) -> 0.01514512 | S70: =S60 -> 49 | U70: =Q70/S70 -> 0.0003090840816 | AC70: =IF(AC65>0,AC69+AC65,AC69) -> 0.0003154783333 | AD70: 0.01776170975
K71: =1-K14 -> 0.7

Sheet Muster Werte
A1: Muster Werte
A3: Bosch Heft Nr. 10 Ausgabe 05/2010 Blatt 17
A5: Teil | B5: Durchgang 1 | C5: Durchgang 2 | E5: Durchgang | F5: Teil | G5: Wert | I5: Minitab
A6: Teil 1 | B6: 6.029 | C6: 6.03 | E6: Durchgang 1 | F6: Teil 1 | G6: 6.029
A7: Teil 2 | B7: 6.019 | C7: 6.02 | E7: Durchgang 1 | F7: Teil 2 | G7: 6.019
A8: Teil 3 | B8: 6.004 | C8: 6.003 | E8: Durchgang 1 | F8: Teil 3 | G8: 6.004
A9: Teil 4 | B9: 5.982 | C9: 5.982 | E9: Durchgang 1 | F9: Teil 4 | G9: 5.982
A10: Teil 5 | B10: 6.009 | C10: 6.009 | E10: Durchgang 1 | F10: Teil 5 | G10: 6.009
A11: Teil 6 | B11: 5.971 | C11: 5.972 | E11: Durchgang 1 | F11: Teil 6 | G11: 5.971
A12: Teil 7 | B12: 5.995 | C12: 5.997 | E12: Durchgang 1 | F12: Teil 7 | G12: 5.995
A13: Teil 8 | B13: 6.014 | C13: 6.018 | E13: Durchgang 1 | F13: Teil 8 | G13: 6.014
A14: Teil 9 | B14: 5.985 | C14: 5.987 | E14: Durchgang 1 | F14: Teil 9 | G14: 5.985
A15: Teil 10 | B15: 6.024 | C15: 6.028 | E15: Durchgang 1 | F15: Teil 10 | G15: 6.024
A16: Teil 11 | B16: 6.033 | C16: 6.032 | E16: Durchgang 1 | F16: Teil 11 | G16: 6.033
A17: Teil 12 | B17: 6.02 | C17: 6.019 | E17: Durchgang 1 | F17: Teil 12 | G17: 6.02
A18: Teil 13 | B18: 6.007 | C18: 6.007 | E18: Durchgang 1 | F18: Teil 13 | G18: 6.007
A19: Teil 14 | B19: 5.985 | C19: 5.986 | E19: Durchgang 1 | F19: Teil 14 | G19: 5.985
A20: Teil 15 | B20: 6.014 | C20: 6.014 | E20: Durchgang 1 | F20: Teil 15 | G20: 6.014
A21: Teil 16 | B21: 5.973 | C21: 5.972 | E21: Durchgang 1 | F21: Teil 16 | G21: 5.973
A22: Teil 17 | B22: 5.997 | C22: 5.996 | E22: Durchgang 1 | F22: Teil 17 | G22: 5.997
A23: Teil 18 | B23: 6.019 | C23: 6.015 | E23: Durchgang 1 | F23: Teil 18 | G23: 6.019
A24: Teil 19 | B24: 5.987 | C24: 5.986 | E24: Durchgang 1 | F24: Teil 19 | G24: 5.987
A25: Teil 20 | B25: 6.029 | C25: 6.025 | E25: Durchgang 1 | F25: Teil 20 | G25: 6.029
A26: Teil 21 | B26: 6.017 | C26: 6.019 | E26: Durchgang 1 | F26: Teil 21 | G26: 6.017
A27: Teil 22 | B27: 6.003 | C27: 6.001 | E27: Durchgang 1 | F27: Teil 22 | G27: 6.003
A28: Teil 23 | B28: 6.009 | C28: 6.012 | E28: Durchgang 1 | F28: Teil 23 | G28: 6.009
A29: Teil 24 | B29: 5.987 | C29: 5.987 | E29: Durchgang 1 | F29: Teil 24 | G29: 5.987
A30: Teil 25 | B30: 6.006 | C30: 6.003 | E30: Durchgang 1 | F30: Teil 25 | G30: 6.006
E31: Durchgang 2 | F31: Teil 1 | G31: 6.03
E32: Durchgang 2 | F32: Teil 2 | G32: 6.02
E33: Durchgang 2 | F33: Teil 3 | G33: 6.003
E34: Durchgang 2 | F34: Teil 4 | G34: 5.982
E35: Durchgang 2 | F35: Teil 5 | G35: 6.009
E36: Durchgang 2 | F36: Teil 6 | G36: 5.972
E37: Durchgang 2 | F37: Teil 7 | G37: 5.997
E38: Durchgang 2 | F38: Teil 8 | G38: 6.018
E39: Durchgang 2 | F39: Teil 9 | G39: 5.987
E40: Durchgang 2 | F40: Teil 10 | G40: 6.028
E41: Durchgang 2 | F41: Teil 11 | G41: 6.032
E42: Durchgang 2 | F42: Teil 12 | G42: 6.019
E43: Durchgang 2 | F43: Teil 13 | G43: 6.007
E44: Durchgang 2 | F44: Teil 14 | G44: 5.986
E45: Durchgang 2 | F45: Teil 15 | G45: 6.014
E46: Durchgang 2 | F46: Teil 16 | G46: 5.972
E47: Durchgang 2 | F47: Teil 17 | G47: 5.996
E48: Durchgang 2 | F48: Teil 18 | G48: 6.015
E49: Durchgang 2 | F49: Teil 19 | G49: 5.986
E50: Durchgang 2 | F50: Teil 20 | G50: 6.025
E51: Durchgang 2 | F51: Teil 21 | G51: 6.019
E52: Durchgang 2 | F52: Teil 22 | G52: 6.001
E53: Durchgang 2 | F53: Teil 23 | G53: 6.012
E54: Durchgang 2 | F54: Teil 24 | G54: 5.987
E55: Durchgang 2 | F55: Teil 25 | G55: 6.003
B58: Durchgang 1 | C58: Durchgang 2 | E58: Durchgang | F58: Teil | G58: Wert | I58: Minitab
A59: Teil 1 | B59: 9.971 | C59: 9.97 | E59: Durchgang 1 | F59: Teil 1 | G59: 9.971
A60: Teil 2 | B60: 9.987 | C60: 9.988 | E60: Durchgang 1 | F60: Teil 2 | G60: 9.987
A61: Teil 3 | B61: 10.004 | C61: 10.003 | E61: Durchgang 1 | F61: Teil 3 | G61: 10.004
A62: Teil 4 | B62: 10.008 | C62: 10.008 | E62: Durchgang 1 | F62: Teil 4 | G62: 10.008
A63: Teil 5 | B63: 9.97 | C63: 9.97 | E63: Durchgang 1 | F63: Teil 5 | G63: 9.97
A64: Teil 6 | B64: 9.971 | C64: 9.972 | E64: Durchgang 1 | F64: Teil 6 | G64: 9.971
A65: Teil 7 | B65: 9.995 | C65: 9.997 | E65: Durchgang 1 | F65: Teil 7 | G65: 9.995
A66: Teil 8 | B66: 10.014 | C66: 10.018 | E66: Durchgang 1 | F66: Teil 8 | G66: 10.014
A67: Teil 9 | B67: 9.985 | C67: 9.987 | E67: Durchgang 1 | F67: Teil 9 | G67: 9.985
A68: Teil 10 | B68: 10.024 | C68: 10.028 | E68: Durchgang 1 | F68: Teil 10 | G68: 10.024
A69: Teil 11 | B69: 10.033 | C69: 10.032 | E69: Durchgang 1 | F69: Teil 11 | G69: 10.033
A70: Teil 12 | B70: 10.02 | C70: 10.019 | E70: Durchgang 1 | F70: Teil 12 | G70: 10.02
A71: Teil 13 | B71: 10.007 | C71: 10.007 | E71: Durchgang 1 | F71: Teil 13 | G71: 10.007
A72: Teil 14 | B72: 9.985 | C72: 9.986 | E72: Durchgang 1 | F72: Teil 14 | G72: 9.985
A73: Teil 15 | B73: 10.014 | C73: 10.014 | E73: Durchgang 1 | F73: Teil 15 | G73: 10.014
A74: Teil 16 | B74: 9.973 | C74: 9.972 | E74: Durchgang 1 | F74: Teil 16 | G74: 9.973
A75: Teil 17 | B75: 9.997 | C75: 9.996 | E75: Durchgang 1 | F75: Teil 17 | G75: 9.997
A76: Teil 18 | B76: 10.019 | C76: 10.015 | E76: Durchgang 1 | F76: Teil 18 | G76: 10.019
A77: Teil 19 | B77: 9.987 | C77: 9.986 | E77: Durchgang 1 | F77: Teil 19 | G77: 9.987
A78: Teil 20 | B78: 10.029 | C78: 10.025 | E78: Durchgang 1 | F78: Teil 20 | G78: 10.029
A79: Teil 21 | B79: 10.017 | C79: 10.019 | E79: Durchgang 1 | F79: Teil 21 | G79: 10.017
A80: Teil 22 | B80: 10.003 | C80: 10.001 | E80: Durchgang 1 | F80: Teil 22 | G80: 10.003
A81: Teil 23 | B81: 10.009 | C81: 10.012 | E81: Durchgang 1 | F81: Teil 23 | G81: 10.009
A82: Teil 24 | B82: 9.987 | C82: 9.987 | E82: Durchgang 1 | F82: Teil 24 | G82: 9.987
A83: Teil 25 | B83: 10.006 | C83: 10.003 | E83: Durchgang 1 | F83: Teil 25 | G83: 10.006
E84: Durchgang 2 | F84: Teil 1 | G84: 9.97
E85: Durchgang 2 | F85: Teil 2 | G85: 9.988
E86: Durchgang 2 | F86: Teil 3 | G86: 10.003
E87: Durchgang 2 | F87: Teil 4 | G87: 10.008
E88: Durchgang 2 | F88: Teil 5 | G88: 9.97
E89: Durchgang 2 | F89: Teil 6 | G89: 9.972
E90: Durchgang 2 | F90: Teil 7 | G90: 9.997
E91: Durchgang 2 | F91: Teil 8 | G91: 10.018
E92: Durchgang 2 | F92: Teil 9 | G92: 9.987
E93: Durchgang 2 | F93: Teil 10 | G93: 10.028
E94: Durchgang 2 | F94: Teil 11 | G94: 10.032
E95: Durchgang 2 | F95: Teil 12 | G95: 10.019
E96: Durchgang 2 | F96: Teil 13 | G96: 10.007
E97: Durchgang 2 | F97: Teil 14 | G97: 9.986
E98: Durchgang 2 | F98: Teil 15 | G98: 10.014
E99: Durchgang 2 | F99: Teil 16 | G99: 9.972
E100: Durchgang 2 | F100: Teil 17 | G100: 9.996
E101: Durchgang 2 | F101: Teil 18 | G101: 10.015
E102: Durchgang 2 | F102: Teil 19 | G102: 9.986
E103: Durchgang 2 | F103: Teil 20 | G103: 10.025
E104: Durchgang 2 | F104: Teil 21 | G104: 10.019
E105: Durchgang 2 | F105: Teil 22 | G105: 10.001
E106: Durchgang 2 | F106: Teil 23 | G106: 10.012
E107: Durchgang 2 | F107: Teil 24 | G107: 9.987
E108: Durchgang 2 | F108: Teil 25 | G108: 10.003
B112: Durchgang 1 | C112: Durchgang 2
A113: Teil 1 | B113: 56.8338 | C113: 56.8321 | E113: Durchgang 1 | F113: Teil 1 | G113: 56.8338
A114: Teil 2 | B114: 56.831 | C114: 56.832 | E114: Durchgang 1 | F114: Teil 2 | G114: 56.831
A115: Teil 3 | B115: 56.8359 | C115: 56.8368 | E115: Durchgang 1 | F115: Teil 3 | G115: 56.8359
A116: Teil 4 | B116: 56.8291 | C116: 56.8257 | E116: Durchgang 1 | F116: Teil 4 | G116: 56.8291
A117: Teil 5 | B117: 56.8294 | C117: 56.829 | E117: Durchgang 1 | F117: Teil 5 | G117: 56.8294
A118: Teil 6 | B118: 56.8206 | C118: 56.8202 | E118: Durchgang 1 | F118: Teil 6 | G118: 56.8206
A119: Teil 7 | B119: 56.841 | C119: 56.8401 | E119: Durchgang 1 | F119: Teil 7 | G119: 56.841
A120: Teil 8 | B120: 56.8305 | C120: 56.8295 | E120: Durchgang 1 | F120: Teil 8 | G120: 56.8305
A121: Teil 9 | B121: 56.8269 | C121: 56.8274 | E121: Durchgang 1 | F121: Teil 9 | G121: 56.8269
A122: Teil 10 | B122: 56.8386 | C122: 56.8386 | E122: Durchgang 1 | F122: Teil 10 | G122: 56.8386
A123: Teil 11 | B123: 56.8321 | C123: 56.8323 | E123: Durchgang 1 | F123: Teil 11 | G123: 56.8321
A124: Teil 12 | B124: 56.8331 | C124: 56.8334 | E124: Durchgang 1 | F124: Teil 12 | G124: 56.8331
A125: Teil 13 | B125: 56.8382 | C125: 56.84 | E125: Durchgang 1 | F125: Teil 13 | G125: 56.8382
A126: Teil 14 | B126: 56.8273 | C126: 56.8282 | E126: Durchgang 1 | F126: Teil 14 | G126: 56.8273
A127: Teil 15 | B127: 56.8235 | C127: 56.8247 | E127: Durchgang 1 | F127: Teil 15 | G127: 56.8235
A128: Teil 16 | B128: 56.8177 | C128: 56.8186 | E128: Durchgang 1 | F128: Teil 16 | G128: 56.8177
A129: Teil 17 | B129: 56.8332 | C129: 56.8339 | E129: Durchgang 1 | F129: Teil 17 | G129: 56.8332
A130: Teil 18 | B130: 56.8305 | C130: 56.8321 | E130: Durchgang 1 | F130: Teil 18 | G130: 56.8305
A131: Teil 19 | B131: 56.8228 | C131: 56.8233 | E131: Durchgang 1 | F131: Teil 19 | G131: 56.8228
A132: Teil 20 | B132: 56.831 | C132: 56.83 | E132: Durchgang 1 | F132: Teil 20 | G132: 56.831
A133: Teil 21 | B133: 56.8318 | C133: 56.8312 | E133: Durchgang 1 | F133: Teil 21 | G133: 56.8318
A134: Teil 22 | B134: 56.8344 | C134: 56.8358 | E134: Durchgang 1 | F134: Teil 22 | G134: 56.8344
A135: Teil 23 | B135: 56.8327 | C135: 56.8329 | E135: Durchgang 1 | F135: Teil 23 | G135: 56.8327
A136: Teil 24 | B136: 56.8213 | C136: 56.8221 | E136: Durchgang 1 | F136: Teil 24 | G136: 56.8213
A137: Teil 25 | B137: 56.8205 | C137: 56.8215 | E137: Durchgang 1 | F137: Teil 25 | G137: 56.8205
E138: Durchgang 2 | F138: Teil 1 | G138: 56.8321
E139: Durchgang 2 | F139: Teil 2 | G139: 56.832
E140: Durchgang 2 | F140: Teil 3 | G140: 56.8368
E141: Durchgang 2 | F141: Teil 4 | G141: 56.8257
E142: Durchgang 2 | F142: Teil 5 | G142: 56.829
E143: Durchgang 2 | F143: Teil 6 | G143: 56.8202
E144: Durchgang 2 | F144: Teil 7 | G144: 56.8401
E145: Durchgang 2 | F145: Teil 8 | G145: 56.8295
E146: Durchgang 2 | F146: Teil 9 | G146: 56.8274
E147: Durchgang 2 | F147: Teil 10 | G147: 56.8386
E148: Durchgang 2 | F148: Teil 11 | G148: 56.8323
E149: Durchgang 2 | F149: Teil 12 | G149: 56.8334
E150: Durchgang 2 | F150: Teil 13 | G150: 56.84
E151: Durchgang 2 | F151: Teil 14 | G151: 56.8282
E152: Durchgang 2 | F152: Teil 15 | G152: 56.8247
E153: Durchgang 2 | F153: Teil 16 | G153: 56.8186
E154: Durchgang 2 | F154: Teil 17 | G154: 56.8339
E155: Durchgang 2 | F155: Teil 18 | G155: 56.8321
E156: Durchgang 2 | F156: Teil 19 | G156: 56.8233
E157: Durchgang 2 | F157: Teil 20 | G157: 56.83
E158: Durchgang 2 | F158: Teil 21 | G158: 56.8312
E159: Durchgang 2 | F159: Teil 22 | G159: 56.8358
E160: Durchgang 2 | F160: Teil 23 | G160: 56.8329
E161: Durchgang 2 | F161: Teil 24 | G161: 56.8221
E162: Durchgang 2 | F162: Teil 25 | G162: 56.8215
A165: Teil Nr. | B165: m=1 | C165: m=2 | D165: m=3 | E165: m=4 | F165: m=5 | G165: m=6 | I165: Teil1 | J165: Messung 1 | K165: 0.015
A166: i=1 | B166: 0.015 | C166: 0.014 | D166: 0.015 | E166: 0.015 | F166: 0.014 | G166: 0.015 | I166: Teil2 | J166: Messung 1 | K166: 0.016
A167: i=2 | B167: 0.016 | C167: 0.015 | D167: 0.017 | E167: 0.016 | F167: 0.015 | G167: 0.017 | I167: Teil3 | J167: Messung 1 | K167: 0.015
A168: i=3 | B168: 0.015 | C168: 0.015 | D168: 0.015 | E168: 0.015 | F168: 0.015 | G168: 0.015 | I168: Teil4 | J168: Messung 1 | K168: 0.017
A169: i=4 | B169: 0.017 | C169: 0.016 | D169: 0.016 | E169: 0.017 | F169: 0.016 | G169: 0.016 | I169: Teil5 | J169: Messung 1 | K169: 0.015
A170: i=5 | B170: 0.015 | C170: 0.015 | D170: 0.015 | E170: 0.015 | F170: 0.015 | G170: 0.015 | I170: Teil6 | J170: Messung 1 | K170: 0.016
A171: i=6 | B171: 0.016 | C171: 0.017 | D171: 0.015 | E171: 0.016 | F171: 0.017 | G171: 0.015 | I171: Teil7 | J171: Messung 1 | K171: 0.015
A172: i=7 | B172: 0.015 | C172: 0.015 | D172: 0.013 | E172: 0.015 | F172: 0.015 | G172: 0.013 | I172: Teil8 | J172: Messung 1 | K172: 0.014
A173: i=8 | B173: 0.014 | C173: 0.016 | D173: 0.014 | E173: 0.014 | F173: 0.016 | G173: 0.014 | I173: Teil9 | J173: Messung 1 | K173: 0.013
A174: i=9 | B174: 0.013 | C174: 0.015 | D174: 0.015 | E174: 0.013 | F174: 0.015 | G174: 0.015 | I174: Teil10 | J174: Messung 1 | K174: 0.015
A175: i=10 | B175: 0.015 | C175: 0.014 | D175: 0.016 | E175: 0.015 | F175: 0.014 | G175: 0.016 | I175: Teil1 | J175: Messung 2 | K175: 0.014
I176: Teil2 | J176: Messung 2 | K176: 0.015
I177: Teil3 | J177: Messung 2 | K177: 0.015
I178: Teil4 | J178: Messung 2 | K178: 0.016
I179: Teil5 | J179: Messung 2 | K179: 0.015
I180: Teil6 | J180: Messung 2 | K180: 0.017
I181: Teil7 | J181: Messung 2 | K181: 0.015
I182: Teil8 | J182: Messung 2 | K182: 0.016
I183: Teil9 | J183: Messung 2 | K183: 0.015
I184: Teil10 | J184: Messung 2 | K184: 0.014
I185: Teil1 | J185: Messung 3 | K185: 0.015
I186: Teil2 | J186: Messung 3 | K186: 0.017
I187: Teil3 | J187: Messung 3 | K187: 0.015
I188: Teil4 | J188: Messung 3 | K188: 0.016
I189: Teil5 | J189: Messung 3 | K189: 0.015
I190: Teil6 | J190: Messung 3 | K190: 0.015
I191: Teil7 | J191: Messung 3 | K191: 0.013
I192: Teil8 | J192: Messung 3 | K192: 0.014
I193: Teil9 | J193: Messung 3 | K193: 0.015
I194: Teil10 | J194: Messung 3 | K194: 0.016
I195: Teil1 | J195: Messung 4 | K195: 0.015
I196: Teil2 | J196: Messung 4 | K196: 0.016
I197: Teil3 | J197: Messung 4 | K197: 0.015
I198: Teil4 | J198: Messung 4 | K198: 0.017
I199: Teil5 | J199: Messung 4 | K199: 0.015
I200: Teil6 | J200: Messung 4 | K200: 0.016
I201: Teil7 | J201: Messung 4 | K201: 0.015
I202: Teil8 | J202: Messung 4 | K202: 0.014
I203: Teil9 | J203: Messung 4 | K203: 0.013
I204: Teil10 | J204: Messung 4 | K204: 0.015
I205: Teil1 | J205: Messung 5 | K205: 0.014
I206: Teil2 | J206: Messung 5 | K206: 0.015
I207: Teil3 | J207: Messung 5 | K207: 0.015
I208: Teil4 | J208: Messung 5 | K208: 0.016
I209: Teil5 | J209: Messung 5 | K209: 0.015
... 15 more rows

Sheet Info
B2: Sie benutzen eine Vorlage von www.sixsigmblackbelt.de
B4: Benötigen Sie Unterstützung, wenden Sie sich an
B6: roland.schnurr@sixsigmablackbelt.de
B8: https://www.sixsigmablackbelt.de
